Cogmind - Beta 15 @@@ ROGUE MODE // 2025.07.01 @ 19:13:11 Player: 7604 Result: Destroyed self with Subdweller Shrapnel Launcher Performance ------------- Evolutions (0) 0 Regions Visited (2) 400 Robots Destroyed (37) 185 Value Destroyed (1049) 1049 Prototype IDs (0) 0 Alien Tech Used (0) 0 Bonus (0) 0 TOTAL SCORE: 1634 Bonus ------- None Cogmind --------- Core Integrity 0/250 Matter 260/300 Energy 165/200 System Corruption 0% Temperature Cool (0) Movement Treading (240) Ox1 Location -10/Subcaves Parts ------- > --- POWER (1) -------- Subdweller Power Source > --- PROPULSION (2) --- Light Treads Light Treads > --- UTILITY (2) ------ High-capacity Storage Unit Light Armor Plating > --- WEAPON (2) ------- Subdweller Beam Cannon Subdweller Shrapnel Launcher > --- INVENTORY (20) --- Light Treads Light Treads Structural Scanner Improved Terrain Scanner Seismic Detector Subdweller Laser Particle Cannon Particle Cannon Particle Cannon Subdweller Beam Cannon Subdweller Machine Gun Subdweller Machine Gun Subdweller Machine Gun Improved Light Cannon Grenade Launcher Grenade Launcher Subdweller Shrapnel Launcher Datajack Makeshift Sword Peak State ------------ > --- POWER ------------ Subdweller Power Source > --- PROPULSION ------- Light Treads Light Treads > --- UTILITY ---------- High-capacity Storage Unit Seismic Detector > --- WEAPON ----------- Subdweller Laser Subdweller Beam Cannon > --- INVENTORY -------- Light Treads Light Treads Structural Scanner Improved Terrain Scanner Seismic Detector Light Armor Plating Particle Cannon Particle Cannon Particle Cannon Subdweller Beam Cannon Subdweller Machine Gun Subdweller Machine Gun Subdweller Machine Gun Improved Light Cannon Grenade Launcher Grenade Launcher Subdweller Shrapnel Launcher Subdweller Shrapnel Launcher Datajack Makeshift Sword [Rating: 13] Favorites ----------- Power Light Ion Engine Engine Light Ion Engine Propulsion Light Treads Treads Light Treads Leg Aluminum Leg Utility Seismic Detector Device Seismic Detector Storage High-capacity Storage Unit Protection Light Armor Plating Weapon Improved Light Cannon Energy Gun Medium Laser Energy Cannon Subdweller Beam Cannon Ballistic Gun Assault Rifle Ballistic Cannon Improved Light Cannon Launcher Grenade Launcher Build | -11 -10 -10 ------- Run | Yrd Mat Sub Slots Evolved . | . . . Power . | . . . Propulsion . | . . . Utility . | . . . Weapon . | . . . Parts Attached 26 | 5 13 8 Power 3 | 1 1 1 Engine 3 | 1 1 1 Core . | . . . Reactor . | . . . Propulsion 4 | 2 2 . Treads 2 | . 2 . Leg 2 | 2 . . Wheel . | . . . Hover . | . . . Flight . | . . . Utility 6 | . 6 . Device 3 | . 3 . Storage 2 | . 2 . Processor . | . . . Hackware . | . . . Protection 1 | . 1 . Artifact . | . . . Weapon 13 | 2 4 7 Energy Gun 2 | 1 . 1 Energy Cannon 3 | . . 3 Ballistic Gun 3 | 1 . 2 Ballistic Cannon 2 | . 2 . Launcher 3 | . 2 1 Special Weapon . | . . . Impact Weapon . | . . . Slashing Weapon . | . . . Piercing Weapon . | . . . Special Melee Weapon . | . . . Unidentified Prototypes . | . . . Parts Lost 2 | . . 2 Power 1 | . . 1 Propulsion . | . . . Utility 1 | . . 1 Weapon . | . . . Highest Loss Streak 1 | . . 1 To Critical Strikes 1 | . . 1 Average Backups 16 | . 14 19 Power . | . . . Propulsion 1 | . 1 2 Utility 3 | . 2 4 Weapon 9 | . 8 12 Tool/Special . | . . . Unused Backups 14 | . 1 13 Power . | . . . Propulsion 3 | . 1 2 Utility 1 | . . 1 Weapon 9 | . . 9 Tool/Special 1 | . . 1 Average Slot Usage (%) 98 | . 96 99 Engine 13 | . 14 13 Treads 24 | . 21 28 Leg 3 | . 6 . Device 13 | . 13 13 Storage 12 | . 11 14 Energy Gun 3 | . 4 3 Energy Cannon 5 | . . 12 Ballistic Gun 5 | . 4 6 Ballistic Cannon 13 | . 19 5 Peak Build Rating 13 | 5 11 13 Average Rating 10 | 4 9 12 On Entrance 5 | . 5 11 Naked Turns . | . . . Heaviest Build 58 | 7 54 58 Greatest Support 40 | 20 40 40 Greatest Overweight (x) 2 | . 2 1 Average Overweight (x) . | . . 1 Largest Inventory Capacity 20 | 5 20 20 Average Capacity 17 | 5 16 20 Most Carried 20 | 4 19 20 Average Carried 16 | . 14 19 Final Capacity 20 | 5 20 20 Final Carried 19 | 4 19 19 Class Distribution -------------------- 100% | Mutant Dominant Class ---------------- Mutant | -10/Materials Mutant | -10/Subcaves Resources | -11 -10 -10 ----------- Run | Yrd Mat Sub Matter Collected 1067 | 268 513 286 Remotely . | . . . Salvage Created 1065 | 45 627 393 Parts 80 | 3 38 39 Haulers Intercepted 2 | . 2 . Recyclers Shooed 2 | . 2 . Parts Field Recycled . | . . . Retrieved Matter . | . . . Parts Self-Destructed 4 | . . 4 Prevented . | . . . Kills | -11 -10 -10 ------- Run | Yrd Mat Sub Combat Hostiles Destroyed 31 | 1 18 12 Guns 8 | 1 4 3 Cannons 16 | . 11 5 AOE 6 | . 3 3 Classes Destroyed 7 | 2 4 1 Tunneler 1 | 1 . . Hauler 2 | . 2 . Operator 1 | . 1 . Watcher 2 | . 2 . Swarmer 6 | . 3 3 Grunt 16 | 1 15 . Subdweller 9 | . . 9 Best Kill Streak 3 | 2 3 3 Combat Bots Only 3 | 1 3 3 Max Kills in Single Turn 3 | 1 2 3 Gunslinging . | . . . Exploded 3 | . 2 3 Melee . | . . . Uniques/NPCs Destroyed . | . . . Combat | -11 -10 -10 -------- Run | Yrd Mat Sub Hostile Shots Fired 104 | 5 57 42 Missed 21 | 2 8 11 Hits 83 | 3 49 31 Projectile 83 | 3 49 31 Critical Strikes 1 | . . 1 Damage Taken 1065 | 30 540 495 Core 267 | . 107 160 Absorbed by Shields . | . . . Regen/Repaired (Parts) 141 | . 141 . Core Remaining (%) 100 | 100 . . Volleys Fired 106 | 6 60 40 Largest 2 | 2 2 2 Hottest 148 | 70 70 148 Shots Fired 196 | 12 116 68 Gun 97 | 12 64 21 Cannon 94 | . 48 46 Launcher 5 | . 4 1 Special . | . . . Kinetic 117 | 6 80 31 Thermal 75 | 6 32 37 Explosive 4 | . 4 . Electromagnetic . | . . . Robot Hit Streak 15 | 4 9 15 Robot Miss Streak 3 | 1 3 1 Penetration Max . | . . . Secondary Targets 2 | . 1 1 Max Gunslinging Chain 1 | . 1 1 Shots Hit Robots 115 | 8 76 31 Core Hits 49 | 3 32 14 Critical Kills 1 | . . 1 Critical Parts Destroyed . | . . . Critical Strikes 4 | . 3 1 Burn 1 | . 1 . Meltdown 1 | . . 1 Blast 2 | . 2 . Melee Attacks . | . . . Impact . | . . . Slashing . | . . . Piercing . | . . . Sneak Attacks . | . . . Combat Hostiles . | . . . Follow-up Attacks . | . . . Damage Inflicted 2472 | 104 1493 875 Guns 904 | 104 512 288 Cannons 1119 | . 738 381 Explosions 440 | . 234 206 Melee . | . . . Ramming 9 | . 9 . Kinetic 1485 | 54 1004 427 Thermal 744 | 50 246 448 Explosive 234 | . 234 . Electromagnetic . | . . . Impact . | . . . Slashing . | . . . Piercing . | . . . Highest Corruption . | . . . Average Corruption . | . . . Corruption Purged . | . . . Corruption Blocked . | . . . Overload Shots . | . . . Overflow Damage 32 | . 21 11 Projectiles 1 | . 1 . Explosions 31 | . 20 11 Melee . | . . . Knockbacks 9 | . 9 . Impact . | . . . Kinetic 9 | . 9 . Secondary . | . . . Self-Inflicted Damage 26 | . . 26 Shots 1 | . . 1 Rammed 1 | . 1 . Targets Rammed 2 | . 2 . Kicked 1 | . 1 . Crushed . | . . . Highest Temperature 102 | 54 102 81 Average Temperature 32 | 23 33 29 Received Heat Transfer 393 | 18 273 102 Siege Activations . | . . . Martial Activations . | . . . Shielding Activations . | . . . Robots Disrupted . | . . . Combat Hostiles . | . . . Robots Corrupted . | . . . Combat Hostiles . | . . . Parts Fried . | . . . Impact Corruptions . | . . . Robots Melted 1 | . . 1 Combat Hostiles 1 | . . 1 Parts Melted 9 | . 4 5 Heat Transferred 1629 | 148 814 667 Parts Sabotaged . | . . . Parts Stolen . | . . . Parts Stripped . | . . . Power Chain Reactions . | . . . Alert | -11 -10 -10 ------- Run | Yrd Mat Sub Maximum Alert Level 1 | . 1 . Low Security (%) 86 | 100 86 . Level 1 13 | . 13 . Level 2 . | . . . Level 3 . | . . . Level 4 . | . . . Level 5 . | . . . High Security . | . . . Max Security . | . . . Peak Influence 302 | 20 302 . Initial 9 | . 9 . Average 94 | 5 98 . Influence Increases 743 | 25 628 90 Destroy 0b10 Robot/C 440 | 20 360 60 Destroy 0b10 Robot/NC 30 | 5 25 . Destroy Leader 88 | . 88 . Successful Hack 9 | . 9 . Select Force Hacks 60 | . 60 . Destroy Structure 26 | . 26 . Lose Combat Pursuer 90 | . 60 30 Influence Decreases 655 | 10 345 300 Entered New Map 150 | . 6 144 Time Decay 505 | 10 339 156 Squads Dispatched 6 | . 6 . Investigation 2 | . 2 . Extermination . | . . . Reinforcement 4 | . 4 . Assault . | . . . Garrison . | . . . Intercept . | . . . Searches Triggered . | . . . Construction Impeded . | . . . Haulers Reinforced . | . . . Active Scanning Responses . | . . . Cargo Convoy Interrupts . | . . . Stealth | -11 -10 -10 --------- Run | Yrd Mat Sub Distress Signals 5 | . 5 . Communications Jammed . | . . . Distress Signals . | . . . Times Spotted 49 | 1 35 13 Peak Tracking Total 5 | 1 5 5 Tactical Retreats 4 | . 3 1 Traps | -11 -10 -10 ------- Run | Yrd Mat Sub Traps Triggered . | . . . Indirectly . | . . . Trap Hack Attempts . | . . . Triggered . | . . . Disarmed . | . . . Reprogrammed . | . . . Reused . | . . . Traps Extracted . | . . . Installed . | . . . Triggered . | . . . Machines | -11 -10 -10 ---------- Run | Yrd Mat Sub Machines Disabled . | . . . Max in Single Turn . | . . . Machines Repaired . | . . . Machines Dismantled . | . . . Machines Sabotaged . | . . . Overloaded Fab Kills . | . . . Hacking | -11 -10 -10 --------- Run | Yrd Mat Sub Machines Accessed 8 | . 8 . Terminals 5 | . 5 . Fabricators . | . . . Repair Stations 1 | . 1 . Recycling Units 2 | . 2 . Scanalyzers . | . . . Garrison Access . | . . . Total Hacks 20 | . 20 . Successful 10 | . 10 . Failed 10 | . 10 . Catastrophic . | . . . Database Lockouts . | . . . Manual 13 | . 13 . Terminals 10 | . 10 . Fabricators . | . . . Repair Stations 4 | . 4 . Recycling Units 6 | . 6 . Scanalyzers . | . . . Garrison Access . | . . . Terminal Hacks . | . . . Fabricator Hacks . | . . . Repair Station Hacks 4 | . 4 . Scan Component 2 | . 2 . Repair 2 | . 2 . Recycling Unit Hacks 1 | . 1 . Retrieve Components 1 | . 1 . Scanalyzer . | . . . Garrison Access Hacks . | . . . Unauthorized Hacks 5 | . 5 . Terminals 3 | . 3 . Botnet 1 | . 1 . Skim 2 | . 2 . Fabricators . | . . . Repair Stations . | . . . Recycling Units 2 | . 2 . Tunnel 2 | . 2 . Scanalyzers . | . . . Garrison Access . | . . . Data Cores Recovered . | . . . Used . | . . . Hacking Detections 7 | . 7 . Full Trace Events 1 | . 1 . Feedback Events . | . . . Feedback Blocked . | . . . Robot Schematics Acquired . | . . . Robots Built . | . . . Authchips . | . . . Time . | . . . Total Robot Build Rating . | . . . Part Schematics Acquired . | . . . Parts Built . | . . . Authchips . | . . . Time . | . . . Total Part Build Rating . | . . . Parts Repaired 2 | . 2 . Time 52 | . 52 . Parts Recycled . | . . . Recycled Matter . | . . . Retrieved Matter . | . . . Retrieved Components 9 | . 9 . Parts Scanalyzed . | . . . Part Schematics Acquired . | . . . Parts Damaged . | . . . Bothacking | -11 -10 -10 ------------ Run | Yrd Mat Sub Used RIF Installer . | . . . Robots Hacked . | . . . Non-combat . | . . . Combat . | . . . Robot Hacks Applied . | . . . Relay Couplers Released . | . . . Fabnet Peak Effective % . | . . . Robots Rewired . | . . . Allies Hacked . | . . . Hacks Repelled . | . . . Allies | -11 -10 -10 -------- Run | Yrd Mat Sub Total Allies . | . . . Largest Group . | . . . Highest-Rated Group . | . . . Highest-Rated Ally . | . . . Total Orders . | . . . Ally Attacks . | . . . Total Damage . | . . . Kills . | . . . Allies Corrupted . | . . . Allies Melted . | . . . Intel | -11 -10 -10 ------- Run | Yrd Mat Sub Active Infowar (turns) 4495 | . 2544 1951 Structural 1 | . 1 . Seismic 4494 | . 2543 1951 Robot Analysis Total . | . . . Derelict Logs Recovered 1 | . . 1 Drone Launches . | . . . Drone Recoveries . | . . . Exploration | -11 -10 -10 ------------- Run | Yrd Mat Sub Turns Passed 4796 | 118 2616 2062 Spaces Moved 1820 | 81 980 759 Core 16 | 16 . . Treads 1413 | . 654 759 Legs 391 | 65 326 . Wheels . | . . . Hover . | . . . Flight . | . . . Fastest Speed 50 | 50 120 240 Average Speed 211 | 106 198 240 Slowest Speed 320 | 120 320 240 Overloaded Moves . | . . . Propulsion Burnouts . | . . . Robots Hopped . | . . . Potential Cave-ins . | . . . Cave-ins Triggered . | . . . Exploration Rate (%) 48 | 9 91 46 Regions Visited 2 Branch Regions 1 Pre-discovered Areas 3 | . 2 1 Known Exits Taken . | . . . Unknown Exits Taken 2 | 1 1 . Scrap Searched 5 | . . 5 Spaces Dug 12 | . 12 . Terrain Destroyed 35 | . 23 12 Melee . | . . . Projectile 1 | . 1 . AOE 34 | . 22 12 Terrain Rammed . | . . . Walls Destroyed . | . . . Machines Disabled . | . . . Actions | -11 -10 -10 --------- Run | Yrd Mat Sub Total 2553 | 98 1526 929 Wait 535 | 3 441 91 Move 1818 | 80 979 759 Hop . | . . . Pick Up 31 | 4 18 9 Fast Attach 9 | 5 3 1 Attach 4 | . 2 2 Detach 2 | . 1 1 Swap 33 | . 16 17 Drop 13 | . 4 9 Fire 106 | 6 60 40 Melee . | . . . Ram . | . . . Kick 1 | . 1 . Crush 1 | . 1 . Escape Stasis . | . . . Rewire . | . . . Trap . | . . . Miscellaneous . | . . . Route ------- -11/Scrapyard -10/Materials (discovered 5 exits: [*Mat x2] / [*Min x2] / [*Sub]) -10/Subcaves History --------- Turn | Location | Event 2 | -11/Scrapyard | Met Revision 17 68 | -11/Scrapyard | Discovered new exit (range 8) 119 | -11/Scrapyard | Entered Materials 151 | -10/Materials | Discovered new exit (range 6) 314 | -10/Materials | Build established: Mutant 374 | -10/Materials | Discovered new exit (range 9) 736 | -10/Materials | Discovered new exit (range 8) 1593 | -10/Materials | Discovered new exit (range 4) 1646 | -10/Materials | Discovered new exit (range 6) 2265 | -10/Materials | Repaired Lgt. Treads 2292 | -10/Materials | Repaired Lgt. Treads 2735 | -10/Materials | Entered Subcaves 2979 | -10/Subcaves | Learned Materials stockpile data 2980 | -10/Subcaves | Shifting Twisted Machinery released Sub. Shrapnel Launcher 3020 | -10/Subcaves | Shifting Twisted Machinery released Sub. Machine Gun 3031 | -10/Subcaves | Learned location of Zion (-6) 3031 | -10/Subcaves | Met a Zionite searching for "candidates" 3068 | -10/Subcaves | Shifting Twisted Machinery released Sub. Shrapnel Launcher 3138 | -10/Subcaves | Shifting Twisted Machinery released Sub. Machine Gun 3758 | -10/Subcaves | Disturbed a concealed Subdweller 4047 | -10/Subcaves | Core integrity fell below 50% 4345 | -10/Subcaves | Core integrity fell below 20% 4718 | -10/Subcaves | A swath of the cavern ceiling suddenly collapsed 4797 | -10/Subcaves | Destroyed self with Subdweller Shrapnel Launcher Last Messages --------------- down. 04344_ JI-MB3(R) suffers critical hit (Meltdown). 04344_ Disposable Heat Sink melted. 04344_ Scrap Shield melted. 04350_ Disposable Heat Sink melted. 04350_ DV-UT5(R) destroyed. 04355_ Acquired 30 matter. 04360_ Acquired Sub. Beam Cannon. 04362_ Acquired 10 matter. 04411_ Subatomizers dissect the Disposable Heat Sink, destroying it. 04438_ Dropped Lgt. Ion Engine. 04607_ Acquired 10 matter. 04718_ 10 Matter crushed. A swath of the cavern ceiling suddenly collapses. 04791_ Seismic Detector destroyed. 04797_ Destroyed Flight Unit. 04797_ S-10 Pest destroyed. Map ----- +----------------------------------------------------+ | ?????????????????????????????????????????????????? | | ?????????????????????????????????????????????????? | | ?????????????????????????????????????????????????? | | ?????????????????????????????????????????????????? | | ?????????????????????????????????????????????????? | | ?????????????????????????????????????????????????? | | ?????????????????????????????????????????????????? | | ?????????????????????????????????????????????????? | | ?????????????????????????????????????????????????? | | ?????????????????????????????????????????????????? | | ?????????????????????????????? ??????????????????? | | ?????????????????????????????? ????????????????? | | ?????????????????????????????? ????????????????? | | ????????????????# ??????????? #????????????????? | | ????????????????? ??????????? ##???????????????? | | ??????????????????%?????????? #???????????????? | | ??????????????????# ????????# #???????????????? | | ??????????????????# #####??# #???????????????? | | ?????????????????##;; ;## ###?????????????? | | ??????????? ????# ; ##????????????? | | ?????????? ###;; % ?????????????? | | ???????????t %% ???????????????? | | ??????????? % [ ??????????????????? | | ??????????????? s%& #????????????????????? | | ????????????????????;;;% #?????????????????????? | | ??????????????????????## @##?????????????????????? | | ???????????????????????# #??????????????????????? | | ???????????????????????#;;#??????????????????????? | | ???????????????????????# ##??????????????????????? | | ??????????????????????##;#???????????????????????? | | ?????????????????????## ;#???????????????????????? | | ????????????????????##" ##???????????????????????? | | ???????????????????#### #????????????????????????? | | ??????????????????? #; ##???????????????????????? | | ???????????????????###;# #???????????????????????? | | ???????????????????#""## #???????????????????????? | | ???????????????????####% ##??????????????????????? | | ????????????????????#""" ##??????????????????????? | | ????????????????????####""#??????????????????????? | | ????????????????????#"##"##??????????????????????? | | ???????????????????#"#"""##??????????????????????? | | ????????????????????#""" ##??????????????????????? | | ????????????????????####"##??????????????????????? | | ?????????????????????###""#??????????????????????? | | ????????????????????## ""##??????????????????????? | | ????????????????????# " #??????????????????????? | | ?????????????????#### ###??????????????????????? | | ?????????????????# #????????????????????????? | | ?????????????????## ##????????????????????????? | | ??????????????????# # #?????????????????????????? | +----------------------------------------------------+ Best States ------------- Heat Dissipation 25 Energy Generation 10 Energy Capacity 200 Matter Stores 300 Matter Capacity 300 Sight Range 16 Terrain Scan Density 10 Armor Coverage 150 Evasion (%) 55 Recoil Reduction 2 Item Schematics ----------------- None Robot Schematics ------------------ None Fabricated ------------ Nothing Repaired ---------- Lgt. Treads | 48% | -10/Materials Lgt. Treads | 50% | -10/Materials Alien Tech Used ----------------- None Achievements -------------- None Challenges ------------ None Game ------ Seed PoweredRemoteBlasthammer Manual? 0 Play Time 00:21:25 Cumulative 502.8 hours Start 2025.07.01 @ 18:54:55 End 2025.07.01 @ 19:13:11 Sessions 1 Manual Loads 0 Difficulty Rogue Special Mode None Game No. 267 Rogue 204 Adventurer 63 Explorer 0 Win Type - Total 9 Types 8/0/0/1/0/0/0/0/0/0 Lore% 90 Gallery% 81 Achievement% 67 Wizard Run 0 Options --------- Layout 2 ASCII 0 Keyboard 1 Movement Numpad Keybinds 0 Fullscreen 2 Font 24/Terminus Map View 50x44 Zoom Use 0% Tactical HUD 1 Map Filters NONE Filters NONE Steam 1 RUN: 21cac526-19d3-4c1f-81c5-5ae8edf24e16